Cogmind - Beta 17.1 @@@ ROGUE MODE // 2026.08.17 @ 23:49:58 Player: kite Result: Self-destructed Performance ------------- Evolutions (6) 3000 Regions Visited (24) 4800 Robots Destroyed (291) 1455 Value Destroyed (10746) 10746 Prototype IDs (24) 480 Alien Tech Used (0) 0 Bonus (6210) 6210 TOTAL SCORE: 26691 Bonus ------- High Alert Combat Kills 937 Follower Combat Kills 2621 Awakened Behemoth Slayer 1000 Entered Garrisons 200 Entered DSFs 500 Network Hubs Disabled 400 Met Data Miner 300 Met Imprinter 300 Was Imprinted 300 Acquired ECA 300 Built Enhanced Grunts 300 A7 Reached Mainframe 300 Friendly Fire -1248 Cogmind --------- Core Integrity 1069/1150 Matter 161/300 Energy 170/170 System Corruption 0% Temperature Cool (0) Movement Rolling (140) Ox4 Location -4/DSF Parts ------- > --- POWER (1) -------- Light Antimatter Reactor > --- PROPULSION (5) --- Wheel Compact Wheel Armored Wheel > --- UTILITY (9) ------ Cargo Storage Unit Advanced Signal Interpreter Advanced Target Analyzer Centrium Medium Armor Plating Graphene Brace Improved Corruption Screen > --- WEAPON (4) ------- Ionic Axe Ionic Axe Ionic Axe Ionic Axe > --- INVENTORY (30) --- Light Angular Momentum Engine Compact Wheel Compact Wheel Armored Huge Wheel Armored Huge Wheel Armored Huge Wheel Armored Huge Wheel Advanced Energy Well (500) Improved Trap Scanner Advanced Sensor Array Long-range Terrain Scanner Advanced Transmission Jammer Authchip [Propulsion] Improved System Restoration Module High-powered Tractor Beam Z-Drone Bay (2/2) Tiamat Missile Launcher Tiamat Missile Launcher Improved Plasma Cutter Ionic Axe Ionic Axe CR-A16's Behemoth Slayer Peak State ------------ > --- POWER ------------ Light Antimatter Reactor > --- PROPULSION ------- Wheel Compact Wheel Armored Wheel Armored Huge Wheel > --- UTILITY ---------- Cargo Storage Unit Advanced Sensor Array Advanced Signal Interpreter Long-range Terrain Scanner Improved Transmission Jammer Centrium Medium Armor Plating Improved Corruption Screen Field Recycling Unit > --- WEAPON ----------- Ionic Axe Ionic Axe Ionic Axe Ionic Axe > --- INVENTORY -------- Light Angular Momentum Engine Compact Wheel Compact Wheel Armored Huge Wheel Armored Huge Wheel Armored Huge Wheel Armored Huge Wheel Advanced Energy Well Improved Trap Scanner Advanced Transmission Jammer Graphene Brace Authchip [Propulsion] Improved System Restoration Module High-powered Tractor Beam Z-Drone Bay Tiamat Missile Launcher Tiamat Missile Launcher Improved Plasma Cutter Ionic Axe Ionic Axe CR-A16's Behemoth Slayer [Rating: 101] Favorites ----------- Power Heavy Deuterium Engine Engine Heavy Deuterium Engine Power Core Neutrino Core Reactor Light Antimatter Reactor Propulsion Medium Treads Treads Medium Treads Leg Carbon-fiber Leg Wheel Armored Huge Wheel Utility Core Analyzer Device Improved Sensor Array Storage Huge Storage Unit Processor Core Analyzer Hackware Advanced Hacking Suite Protection Layered Medium Armor Plating Weapon Greatsword Energy Gun Advanced Variable Charge Gun Ballistic Gun Assault Rifle Launcher Advanced EMP Blaster Special Weapon Remote Datajack Impact Weapon Great Maul Slashing Weapon Greatsword Piercing Weapon Spear Build | -11 -10 -10 -10 -9 -8 -8 -8 -7 -7 -7 -7 -6 -6 -6 -6 -6 -5 -5 -5 -5 -5 -5 -4 -4 ------- Run | Yrd Mat Min Exi Min Mat Gar Mat Fac Low Low Zio Pro Fac Low Low Dat Pro Fac Ext Cet Arc Hub Fac DSF Slots Evolved 12 | . . . . . 4 . . 2 . . . . 2 . . . . 2 . . . . 2 . Power . | . . . . . . . . . . . . . . . . . . . . . . . . . Propulsion 3 | . . . . . 2 . . . . . . . . . . . . 1 . . . . . . Utility 7 | . . . . . 2 . . 2 . . . . 2 . . . . 1 . . . . . . Weapon 2 | . . . . . . . . . . . . . . . . . . . . . . . 2 . Parts Attached 203 | 6 3 . 1 . 36 6 11 38 5 2 . 9 9 12 2 . 6 19 7 3 3 14 7 4 Power 19 | 1 . . . . 4 . . 4 . . . 1 1 1 . . . 1 1 . 1 3 1 . Engine 10 | 1 . . . . 2 . . 3 . . . 1 1 . . . . 1 . . . 1 . . Core 6 | . . . . . 2 . . 1 . . . . . 1 . . . . 1 . . 1 . . Reactor 3 | . . . . . . . . . . . . . . . . . . . . . 1 1 1 . Propulsion 65 | 2 . . . . 16 4 5 10 3 . . 5 2 4 1 . 3 3 . . . 6 1 . Treads 44 | 2 . . . . 12 4 5 10 3 . . 3 1 2 1 . 1 . . . . . . . Leg 4 | . . . . . . . . . . . . 2 1 1 . . . . . . . . . . Wheel 17 | . . . . . 4 . . . . . . . . 1 . . 2 3 . . . 6 1 . Hover . | . . . . . . . . . . . . . . . . . . . . . . . . . Flight . | . . . . . . . . . . . . . . . . . . . . . . . . . Utility 89 | 1 3 . 1 . 8 1 5 19 . 2 . 2 6 7 1 . 2 11 5 2 2 3 5 3 Device 27 | . . . . . . 1 . 6 . 1 . . 1 5 . . 1 4 1 . 2 1 2 2 Storage 9 | 1 3 . 1 . . . . 1 . . . 1 1 . . . 1 . . . . . . . Processor 20 | . . . . . 3 . . 7 . . . . 2 1 . . . 2 2 . . 1 1 1 Hackware 7 | . . . . . . . . 2 . . . . 2 . . . . 1 . . . . 2 . Protection 26 | . . . . . 5 . 5 3 . 1 . 1 . 1 1 . . 4 2 2 . 1 . . Artifact . | . . . . . . . . . . . . . . . . . . . . . . . . . Weapon 30 | 2 . . . . 8 1 1 5 2 . . 1 . . . . 1 4 1 1 . 2 . 1 Energy Gun 1 | . . . . . . . . . . . . . . . . . . . . 1 . . . . Energy Cannon . | . . . . . . . . . . . . . . . . . . . . . . . . . Ballistic Gun 2 | 2 . . . . . . . . . . . . . . . . . . . . . . . . Ballistic Cannon . | . . . . . . . . . . . . . . . . . . . . . . . . . Launcher 6 | . . . . . 1 1 1 1 1 . . . . . . . . 1 . . . . . . Special Weapon 2 | . . . . . . . . . . . . . . . . . 1 . . . . 1 . . Impact Weapon 4 | . . . . . 2 . . 2 . . . . . . . . . . . . . . . . Slashing Weapon 11 | . . . . . 2 . . 2 1 . . . . . . . . 3 1 . . 1 . 1 Piercing Weapon 4 | . . . . . 3 . . . . . . 1 . . . . . . . . . . . . Special Melee Weapon . | . . . . . . . . . . . . . . . . . . . . . . . . . Unidentified Prototypes 15 | . . . . . 1 . 1 3 . 1 . 2 2 . . . . 2 . 2 . 1 . . Corrupted Parts 2 | . . . . . . . . . . . . 1 . . . . . . . 1 . . . . System Corruption 10 | . . . . . . . . . . . . 4 . . . . . . . 6 . . . . Parts Lost 55 | . . . . . 14 2 1 4 3 . . . . 6 . . 2 3 . . . 16 . 4 Power 10 | . . . . . 3 1 . 1 . . . . . 1 . . 1 1 . . . 2 . . Propulsion 25 | . . . . . 10 . . 1 3 . . . . 2 . . 1 1 . . . 6 . 1 Utility 18 | . . . . . 1 1 1 2 . . . . . 2 . . . 1 . . . 7 . 3 Weapon 2 | . . . . . . . . . . . . . . 1 . . . . . . . 1 . . Highest Loss Streak 15 | . . . . . 3 1 1 1 2 . . . . 3 . . 1 1 . . . 15 . 4 To Critical Strikes 1 | . . . . . . . . . . . . . . . . . . . . . . 1 . . Average Backups 20 | 2 6 12 13 13 18 19 19 19 20 21 22 21 20 19 20 20 19 24 27 26 26 25 20 21 Power . | . 1 1 1 1 . . . . 1 1 1 . . 1 1 1 . . 1 1 1 . . 1 Propulsion 4 | 1 3 5 4 4 3 5 7 5 3 2 2 2 3 4 5 5 4 2 4 4 4 3 2 6 Utility 8 | . . 2 3 4 8 7 6 7 8 10 11 10 9 6 7 8 8 11 12 12 12 12 9 8 Weapon 6 | . 1 4 4 4 6 6 5 5 7 7 7 6 6 6 5 5 5 9 9 9 9 8 7 5 Tool/Special . | . . . . . . . . . . . . . . . . . . . . . . . . . Unused Backups 63 | . . . 1 . 12 1 5 6 1 4 2 3 5 . 1 . . 4 2 1 1 2 . 12 Power 4 | . . . . . . . . . . 1 . 1 . . . . . . 1 . . 1 . . Propulsion 13 | . . . 1 . 1 1 . 1 . 1 . 1 . . 1 . . . . . . . . 6 Utility 29 | . . . . . 6 . 3 3 . 1 1 1 5 . . . . 2 . 1 1 1 . 4 Weapon 17 | . . . . . 5 . 2 2 1 1 1 . . . . . . 2 1 . . . . 2 Tool/Special . | . . . . . . . . . . . . . . . . . . . . . . . . . Average Slot Usage (%) 90 | . 87 100 100 100 90 98 99 96 93 92 92 91 92 90 89 86 84 81 81 82 81 78 64 86 Engine 5 | . 14 14 14 14 2 7 9 6 7 7 7 7 6 3 . . 1 4 1 . . . 1 . Core 1 | . . . . . 5 . . . . . . . . 2 6 6 4 . 3 5 3 2 . . Treads 24 | . 28 28 28 28 28 36 36 29 29 30 30 29 26 19 26 26 21 . . . . . . . Wheel 2 | . . . . . 4 . . . . . . . . 1 . . 2 16 17 17 17 16 19 21 Device 5 | . . . . . . 1 . 5 7 6 7 6 6 10 6 6 6 12 8 . 7 13 12 17 Storage 7 | . 16 28 28 28 11 9 9 7 7 7 7 7 6 6 6 6 6 5 5 5 5 5 5 5 Processor 21 | . . . . . 12 18 18 23 30 24 23 23 23 29 29 26 26 21 20 23 19 16 8 10 Hackware 1 | . . . . . . . . 5 . . . . 8 . . . . 1 5 5 5 4 . . Protection 5 | . . . . . 7 7 8 2 . 5 7 7 6 3 6 6 5 4 4 10 5 2 3 5 Ballistic Gun 1 | . 28 28 28 28 1 . . . . . . . . . . . . . . . . . . . Impact Weapon 1 | . . . . . 2 4 5 4 . . . . . . . . . . . . . . . . Slashing Weapon 5 | . . . . . 2 . . 2 5 6 7 6 5 3 6 6 4 9 7 10 11 9 10 20 Piercing Weapon 2 | . . . . . 11 12 11 4 . . . . . . . . . . . . . . . . Peak Build Rating 101 | 6 8 8 8 8 33 31 32 57 56 60 56 67 74 70 70 69 77 88 89 97 97 98 89 101 Average Rating 55 | 5 6 8 8 8 24 28 30 47 54 56 55 57 67 64 69 69 70 83 88 93 94 91 72 98 On Entrance 50 | . 6 8 8 8 8 30 29 30 55 56 56 56 59 69 70 69 69 70 86 88 97 96 43 89 Avg Prop Armor Cover (%) 9 | . . . . . 13 . . . . . . 16 11 7 . . . . . . . 7 . . Naked Turns . | . . . . . . . . . . . . . . . . . . . . . . . . . Heaviest Build 187 | 14 49 31 51 51 56 59 62 99 105 105 105 109 111 111 120 120 129 175 177 177 177 177 179 187 Greatest Support 108 | 40 40 40 40 40 88 80 80 106 104 98 98 108 108 108 106 100 108 68 68 68 68 68 66 66 Greatest Overweight (x) 10 | . 1 . 1 1 2 . . . 1 1 1 3 2 10 1 1 2 3 2 2 2 4 3 2 Average Overweight (x) . | . . . . 1 . . . . . . 1 . 1 2 1 1 1 1 2 2 2 2 2 2 Largest Inventory Capacity 30 | 8 15 15 20 20 20 20 20 25 25 25 25 25 25 25 25 25 30 30 30 30 30 30 30 30 Average Capacity 23 | 7 14 15 16 20 20 20 20 21 25 25 25 25 25 25 25 25 25 28 30 30 30 30 30 30 Most Carried 30 | 4 12 13 14 13 20 20 20 25 25 25 25 25 25 25 25 25 25 30 30 30 30 30 27 26 Average Carried 22 | 2 6 12 13 13 18 19 19 21 24 24 24 24 24 24 24 25 24 27 29 29 29 28 22 25 Final Capacity 30 | 8 15 15 20 20 20 20 20 25 25 25 25 25 25 25 25 25 25 30 30 30 30 30 30 30 Final Carried 30 | 4 12 13 13 13 20 20 20 25 24 25 25 25 25 25 25 25 23 30 30 30 30 21 27 26 Class Distribution -------------------- 52% | Gladiator 13% | Mutant 12% | Scavenger-Mutant 6% | Scavenger-Gladiator 4% | Hauler-Gladiator 4% | Commander-Gladiator Dominant Class ---------------- Mutant | -10/Materials Mutant | -10/Mines Mutant | -10/Exiles Mutant | -9/Mines Scavenger-Mutant | -8/Materials Scavenger-Mutant | -8/Garrison Scavenger-Mutant | -8/Materials Gladiator | -7/Factory Gladiator | -7/Lower Caves Gladiator | -7/Lower Caves Gladiator | -7/Zion Gladiator | -6/Proximity Caves Scavenger-Gladiator | -6/Factory Gladiator | -6/Lower Caves Gladiator | -6/Lower Caves Gladiator | -6/Data Miner Gladiator | -5/Proximity Caves Hauler-Gladiator | -5/Factory Commander-Mutant | -5/Extension Commander-Gladiator | -5/Cetus Commander-Gladiator | -5/Archives Commander-Gladiator | -5/Hub_04(d) Hauler-Assassin | -4/Factory Hauler-Assassin | -4/DSF Resources | -11 -10 -10 -10 -9 -8 -8 -8 -7 -7 -7 -7 -6 -6 -6 -6 -6 -5 -5 -5 -5 -5 -5 -4 -4 ----------- Run | Yrd Mat Min Exi Min Mat Gar Mat Fac Low Low Zio Pro Fac Low Low Dat Pro Fac Ext Cet Arc Hub Fac DSF Matter Collected 5803 | 141 368 213 . 192 522 266 279 733 248 120 10 200 221 372 30 . 435 282 647 105 106 86 132 95 Remotely 294 | . . . . . . . . . . . . . . . . . . . 294 . . . . . Salvage Created 12368 | 108 550 13 . 128 1889 401 587 2081 363 323 . 303 746 749 80 . 656 970 1227 . 286 681 132 95 Parts 637 | 3 38 . . 13 109 37 48 90 27 10 . 14 32 23 4 . 14 37 78 . 23 27 6 4 Haulers Intercepted 18 | . 1 . . . 4 . 1 3 . 1 . . 1 . . . . 1 4 . . 2 . . Recyclers Shooed 1 | 1 . . . . . . . . . . . . . . . . . . . . . . . . Parts Field Recycled 13 | . . . . . . . . . . . . . . . . . . . . . . . 3 10 Retrieved Matter 88 | . . . . . . . . . . . . . . . . . . . . . . . 17 71 Parts Self-Destructed 68 | . . . . . . . . . 14 4 . 27 . 6 4 . 13 . . . . . . . Prevented 23 | . . . . . . . . . 7 . . 5 . 11 . . . . . . . . . . Parts Restored . | . . . . . . . . . . . . . . . . . . . . . . . . . Kills | -11 -10 -10 -10 -9 -8 -8 -8 -7 -7 -7 -7 -6 -6 -6 -6 -6 -5 -5 -5 -5 -5 -5 -4 -4 ------- Run | Yrd Mat Min Exi Min Mat Gar Mat Fac Low Low Zio Pro Fac Low Low Dat Pro Fac Ext Cet Arc Hub Fac DSF Combat Hostiles Destroyed 204 | . 11 . . 8 27 14 19 26 14 6 . . 12 13 . . 14 15 14 . . 10 . 1 Melee 105 | . . . . . 20 9 10 21 2 1 . . 12 2 . . 2 15 6 . . 4 . 1 Guns 20 | . 11 . . 8 1 . . . . . . . . . . . . . . . . . . . AOE 65 | . . . . . 4 5 6 2 11 5 . . . 7 . . 11 . 8 . . 6 . . Classes Destroyed 21 | 2 6 . . . 3 1 2 . . 1 . . . 1 . . 2 . . . . 2 . 1 Worker 21 | . 4 1 . . 8 . 2 4 . . . . . . . . . 1 . . . 1 . . Builder 12 | . 1 . . . 1 . 1 1 . . . . 1 . . . . . 5 . . 2 . . Tunneler 4 | 1 . . . . . . . 1 . . . . . . . . . . 2 . . . . . Hauler 18 | . 1 . . . 4 . 1 3 . 1 . . 1 . . . . 1 4 . . 2 . . Recycler 11 | 1 . . . . 3 . . 5 . . . . . . . . . . 1 . . . 1 . Minesweeper 2 | . . . . . . . . . . . . . . 1 1 . . . . . . . . . Operator 13 | . . . . . 2 . 1 1 . . . . . . . . . . . . 8 1 . . Drone 1 | . . . . . . . . . . . . . . . . . 1 . . . . . . . Watcher 4 | . 1 . . . 2 . . . . . . . . . . . . . . . . 1 . . Swarmer 57 | . 3 . . 8 4 7 10 . 9 . . . 2 3 . . 2 3 6 . . . . . Grunt 70 | . 8 . . . 13 2 2 11 2 5 . . 7 8 . . 2 9 . . . 1 . . Brawler 1 | . . . . . . . 1 . . . . . . . . . . . . . . . . . Duelist 4 | . . . . . . . 1 . 1 . . . 1 1 . . . . . . . . . . Protector 1 | . . . . . . . . . . . . . . . . . . . . . . 1 . . Sentry 32 | . . . . . 8 4 4 4 1 . . . . . . . 1 2 6 . . 2 . . Specialist 1 | . . . . . . . . . . . . . . . . . . . . . . . . 1 Hunter 16 | . . . . . 2 . 1 3 1 . . . 1 . . . 5 . 1 . . 2 . . Programmer 17 | . . . . . . 1 . 8 . 1 . . 1 1 . . 2 1 . . . 2 . . Heavy 1 | . . . . . . . . . . . . . . . . . . . . . . 1 . . Behemoth 2 | . . . . . . . . . . . . . . . . . 1 . 1 . . . . . Enhanced Grunt 2 | . . . . . . . . . . . . 2 . . . . . . . . . . . . Lightning 1 | . . . . . . . . . . . . . . . . . . . . . . 1 . . Decomposer 1 | . . . . . . . . . 1 . . . . . . . . . . . . . . . Samaritan 5 | . . . . . . . . . . 2 . 3 . . . . . . . . . . . . Best Kill Streak 10 | 1 4 1 . 5 6 6 7 4 3 5 . . 3 7 1 . 5 4 8 . 3 10 1 1 Combat Bots Only 7 | . 4 . . 5 4 6 6 3 3 5 . . 3 7 . . 5 4 4 . . 6 . 1 Max Kills in Single Turn 6 | 1 2 1 . 1 4 2 2 1 3 3 . 1 1 2 1 . 2 1 6 . 1 2 1 1 Gunslinging 1 | . 1 . . . . . . . . . . . . . . . . . . . . . . . Exploded 4 | . . . . . 3 2 2 1 3 3 . . . 2 . . 2 . 4 . . 2 . . Melee 1 | . . . . . 1 1 1 1 1 1 . . 1 1 . . 1 1 1 . . 1 . 1 Uniques/NPCs Destroyed . | . . . . . . . . . . . . . . . . . . . . . . . . . Combat | -11 -10 -10 -10 -9 -8 -8 -8 -7 -7 -7 -7 -6 -6 -6 -6 -6 -5 -5 -5 -5 -5 -5 -4 -4 -------- Run | Yrd Mat Min Exi Min Mat Gar Mat Fac Low Low Zio Pro Fac Low Low Dat Pro Fac Ext Cet Arc Hub Fac DSF Hostile Shots Fired 1148 | . 49 . . 27 152 60 84 252 47 9 . 21 58 49 . . 78 54 27 . . 173 . 8 Missed 323 | . 15 . . 7 35 15 31 73 14 2 . 4 14 16 . . 22 14 6 . . 53 . 2 Hits 825 | . 34 . . 20 117 45 53 179 33 7 . 17 44 33 . . 56 40 21 . . 120 . 6 Melee 11 | . . . . . . . 2 . 1 . . . 4 1 . . . . . . . 3 . . Projectile 814 | . 34 . . 20 117 45 51 179 32 7 . 17 40 32 . . 56 40 21 . . 117 . 6 Critical Strikes 44 | . . . . . 4 1 3 7 2 2 . . 3 1 . . 4 . . . . 16 . 1 Actively Blocked 2 | . . . . . 1 . . . . . . . . . . . . . . . . . . 1 Part Disruptions 1 | . . . . . . . . . . . . . . . . . . . . . . 1 . . Damage Taken 14598 | . 329 . . 163 1765 545 804 1911 500 108 . 501 947 818 . . 1249 1110 367 86 . 2950 . 445 Core 1903 | . 54 . . 33 285 76 121 236 37 44 . 123 53 117 . . 139 133 44 . . 327 . 81 Absorbed by Shields 198 | . . . . . . . . 60 . . . . . . . . . . 119 . . . . 19 Redirected to Shielding 42 | . . . . . 42 . . . . . . . . . . . . . . . . . . . Ignored by Resistances 211 | . . . . . . . . . . . . . . . . . . . . . . 211 . . Regen/Repaired (Parts) 652 | . . . . . . . . . . . 561 . . . . . . . . . . . 91 . Core Remaining (%) 54 | 100 . . . 65 . . 12 . . . . 37 . . . . 63 . . . . 49 . . Volleys Fired 181 | 9 47 1 . 14 6 7 5 6 17 2 . . 2 18 . . 7 . 32 1 . 7 . . Largest 2 | 2 2 2 . 2 2 1 1 1 1 1 . . 1 1 . . 1 . 1 1 . 1 . . Hottest 240 | 40 40 40 . 40 40 36 36 36 39 45 . . 39 36 . . 45 . 46 240 . 45 . . Shots Fired 257 | 18 94 2 . 28 10 7 5 6 17 2 . . 2 19 . . 7 . 32 1 . 7 . . Gun 151 | 18 94 2 . 28 8 . . . . . . . . . . . . . . 1 . . . . Cannon . | . . . . . . . . . . . . . . . . . . . . . . . . . Launcher 87 | . . . . . 2 7 5 6 17 2 . . 2 19 . . 7 . 13 . . 7 . . Special 19 | . . . . . . . . . . . . . . . . . . . 19 . . . . . Kinetic 150 | 18 94 2 . 28 8 . . . . . . . . . . . . . . . . . . . Thermal 1 | . . . . . . . . . . . . . . . . . . . . 1 . . . . Explosive 52 | . . . . . 2 7 5 . 7 2 . . 2 . . . 7 . 13 . . 7 . . Electromagnetic 35 | . . . . . . . . 6 10 . . . . 19 . . . . . . . . . . Robot Hit Streak 15 | 3 8 1 . 5 7 10 . 1 4 . . . . 6 . . 15 . 10 . . 11 . . Robot Miss Streak 6 | 2 4 1 . 3 1 . 1 3 2 . . . . 2 . . 6 . 1 . . 5 . . Penetration Max . | . . . . . . . . . . . . . . . . . . . . . . . . . Secondary Targets 5 | . 3 . . 2 . . . . . . . . . . . . . . . . . . . . Max Gunslinging Chain 1 | . 1 . . 1 . . . . . . . . . . . . . . . . . . . . Shots Hit Robots 554 | 10 52 1 . 15 100 20 40 80 12 9 . 12 31 17 2 . 19 41 52 . 14 24 1 2 Core Hits 433 | 3 30 1 . 8 45 17 23 35 20 22 . 3 14 16 1 . 52 22 34 . 6 78 1 2 Critical Kills 4 | . . . . . . 1 1 2 . . . . . . . . . . . . . . . . Critical Parts Destroyed 12 | . . . . . 2 . 5 5 . . . . . . . . . . . . . . . . Critical Strikes 57 | . . . . . 7 2 7 14 . . . 2 9 . . . . 7 4 . . 5 . . Smash 16 | . . . . . 2 1 6 7 . . . . . . . . . . . . . . . . Sever 30 | . . . . . . . . 3 . . . 2 9 . . . . 7 4 . . 5 . . Impale 11 | . . . . . 5 1 1 4 . . . . . . . . . . . . . . . . Melee Attacks 581 | . . . . . 122 29 53 128 3 9 . 13 57 6 2 . 18 59 36 . 16 26 2 2 Impact 66 | . . . . . 19 4 19 24 . . . . . . . . . . . . . . . . Slashing 312 | . . . . . 23 . . 51 3 9 . 10 57 6 2 . 10 59 36 . 16 26 2 2 Piercing 203 | . . . . . 80 25 34 53 . . . 3 . . . . 8 . . . . . . . Sneak Attacks 100 | . . . . . 23 . 7 21 1 5 . 11 3 1 1 . . 4 10 . 8 3 1 1 Combat Hostiles 4 | . . . . . . . . 2 . . . . 1 . . . . 1 . . . . . . Follow-up Attacks 26 | . . . . . 13 2 3 3 . . . . . . . . . 3 . . 1 1 . . Damage Inflicted 31817 | 134 678 12 . 180 3819 892 2046 4469 1418 1215 . 1119 1741 1439 214 . 1936 2194 3994 . 1338 2739 118 122 Guns 1061 | 134 652 12 . 180 83 . . . . . . . . . . . . . . . . . . . Cannons . | . . . . . . . . . . . . . . . . . . . . . . . . . Explosions 9491 | . 26 . . . 500 377 394 340 1208 490 . . . 1123 . . 1134 . 2111 . . 1788 . . Melee 21265 | . . . . . 3236 515 1652 4129 210 725 . 1119 1741 316 214 . 802 2194 1883 . 1338 951 118 122 Ramming . | . . . . . . . . . . . . . . . . . . . . . . . . . Kinetic 1061 | 134 652 12 . 180 83 . . . . . . . . . . . . . . . . . . . Thermal 161 | . . . . . . . . 55 . . . . . 106 . . . . . . . . . . Explosive 7686 | . . . . . 500 377 394 . 892 490 . . . . . . 1134 . 2111 . . 1788 . . Electromagnetic 1644 | . 26 . . . . . . 285 316 . . . . 1017 . . . . . . . . . . Impact 2256 | . . . . . 401 41 804 1010 . . . . . . . . . . . . . . . . Slashing 13760 | . . . . . 591 . . 1742 210 725 . 950 1741 316 214 . 665 2194 1883 . 1338 951 118 122 Piercing 5249 | . . . . . 2244 474 848 1377 . . . 169 . . . . 137 . . . . . . . Highest Corruption 18 | . . . . . . 1 2 . . . . 4 . 4 . . 2 1 1 7 7 18 . . Average Corruption 2 | . . . . . . 1 1 . . . . 4 . 2 . . 1 1 1 3 5 7 . . Corruption Purged 11 | . . . . . . . . . . . . . . 4 . . . . . . 7 . . . Corruption Blocked 5 | . . . . . . . . 4 1 . . . . . . . . . . . . . . . Effects 87 | . . . . . . 5 8 . . . . 21 . 23 . . 5 2 7 6 6 4 . . Message Errors 18 | . . . . . . . 2 . . . . 4 . 4 . . 1 1 . 2 3 1 . . Matter Fused 30 | . . . . . . 4 2 . . . . 8 . 9 . . . 1 3 . 2 1 . . Heat Flow Errors 9 | . . . . . . . 1 . . . . 1 . 4 . . 1 . . 2 . . . . Energy Discharges 11 | . . . . . . . 1 . . . . 4 . 2 . . . . 2 1 . 1 . . Parts Rejected 1 | . . . . . . . . . . . . . . . . . . . . . . 1 . . Parts Fused 3 | . . . . . . . . . . . . 1 . 2 . . . . . . . . . . Data Loss (minor) 10 | . . . . . . 1 1 . . . . 2 . 1 . . 1 . 2 1 1 . . . Data Loss (major) 3 | . . . . . . . 1 . . . . 1 . . . . 1 . . . . . . . Misfires 1 | . . . . . . . . . . . . . . 1 . . . . . . . . . . Alerts 1 | . . . . . . . . . . . . . . . . . 1 . . . . . . . Overload Shots 1 | . . . . . . . . . . . . . . . . . . . . 1 . . . . Overflow Damage 2984 | . . . . . 319 25 240 779 40 180 . 320 18 68 66 . 104 179 143 . 440 63 . . Projectiles . | . . . . . . . . . . . . . . . . . . . . . . . . . Explosions 179 | . . . . . 21 25 2 . 40 . . . . 14 . . . . 51 . . 26 . . Melee 2805 | . . . . . 298 . 238 779 . 180 . 320 18 54 66 . 104 179 92 . 440 37 . . Knockbacks 9 | . . . . . . . 6 3 . . . . . . . . . . . . . . . . Impact 9 | . . . . . . . 6 3 . . . . . . . . . . . . . . . . Kinetic . | . . . . . . . . . . . . . . . . . . . . . . . . . Secondary . | . . . . . . . . . . . . . . . . . . . . . . . . . Self-Inflicted Damage 667 | . . . . . . 52 73 20 78 . . . . 230 . . 58 . . . . 156 . . Shots 26 | . . . . . . 1 2 1 4 . . . . 9 . . 3 . . . . 6 . . Rammed . | . . . . . . . . . . . . . . . . . . . . . . . . . Targets Rammed . | . . . . . . . . . . . . . . . . . . . . . . . . . Kicked . | . . . . . . . . . . . . . . . . . . . . . . . . . Crushed . | . . . . . . . . . . . . . . . . . . . . . . . . . Highest Temperature 314 | . 2 . . . 7 9 183 18 18 24 . 117 5 262 . . 314 . . 217 . 22 . . Average Temperature 82 | . 2 . . . 3 4 77 7 12 15 . 58 5 93 . . 129 . . 103 . 22 . . Received Heat Transfer 3504 | . 111 . . . 783 99 180 620 72 45 . 60 240 171 . . 464 204 53 . . 402 . . Effects 1 | . . . . . . . . . . . . . . 1 . . . . . . . . . . Energy Bleed 1 | . . . . . . . . . . . . . . 1 . . . . . . . . . . Siege Activations . | . . . . . . . . . . . . . . . . . . . . . . . . . Martial Activations . | . . . . . . . . . . . . . . . . . . . . . . . . . Shielding Activations . | . . . . . . . . . . . . . . . . . . . . . . . . . Robots Disrupted . | . . . . . . . . . . . . . . . . . . . . . . . . . Combat Hostiles . | . . . . . . . . . . . . . . . . . . . . . . . . . Robots Corrupted 15 | . . . . . 3 . 3 4 1 . . . . 4 . . . . . . . . . . Combat Hostiles 13 | . . . . . 2 . 3 3 1 . . . . 4 . . . . . . . . . . Parts Fried 25 | . . . . . 5 . 3 6 2 . . . . 9 . . . . . . . . . . Impact Corruptions 25 | . . . . . 4 . 8 13 . . . . . . . . . . . . . . . . Robots Melted . | . . . . . . . . . . . . . . . . . . . . . . . . . Combat Hostiles . | . . . . . . . . . . . . . . . . . . . . . . . . . Parts Melted 3 | . . . . . . . . 1 . . . . . . . . . . . . . 2 . . Heat Transferred 250 | . . . . . . . . 100 . . . . . 150 . . . . . . . . . . Parts Sabotaged . | . . . . . . . . . . . . . . . . . . . . . . . . . Parts Stolen . | . . . . . . . . . . . . . . . . . . . . . . . . . Parts Stripped . | . . . . . . . . . . . . . . . . . . . . . . . . . Power Chain Reactions 6 | . . . . . . . . 2 . . . . . 4 . . . . . . . . . . Alert | -11 -10 -10 -10 -9 -8 -8 -8 -7 -7 -7 -7 -6 -6 -6 -6 -6 -5 -5 -5 -5 -5 -5 -4 -4 ------- Run | Yrd Mat Min Exi Min Mat Gar Mat Fac Low Low Zio Pro Fac Low Low Dat Pro Fac Ext Cet Arc Hub Fac DSF Maximum Alert Level 4 | . . . . . 2 3 3 2 . . . . 3 . . . . 2 3 2 1 4 2 1 Low Security (%) 39 | 100 100 100 . 100 87 . . 50 . . . . . . . . . 18 22 . 3 19 . . Level 1 27 | . . . . . 12 14 . 31 . . . . 27 . . . . 73 64 . 96 4 31 100 Level 2 23 | . . . . . . 61 60 18 . . . . 48 . . . . 7 2 100 . 7 68 . Level 3 10 | . . . . . . 23 39 . . . . . 24 . . . . . 10 . . 67 . . Level 4 . | . . . . . . . . . . . . . . . . . . . . . . . . . Level 5 . | . . . . . . . . . . . . . . . . . . . . . . . . . High Security . | . . . . . . . . . . . . . . . . . . . . . . . . . Max Security . | . . . . . . . . . . . . . . . . . . . . . . . . . Peak Influence 1113 | 5 162 44 . 100 400 884 738 542 . . . . 751 . . . . 435 934 606 354 1113 488 272 Initial 512 | . . 44 . . . 254 430 307 . . . . 487 . . . . 162 207 512 177 83 488 252 Average 321 | 1 81 29 . 34 116 573 677 218 . . . . 539 . . . . 293 313 520 296 703 422 265 Influence Increases 11270 | 10 392 5 . 195 962 650 654 986 330 135 . 494 1359 315 10 . 325 1025 1145 209 287 1719 43 20 Destroy 0b10 Robot/C 5680 | . 220 . . 160 540 280 380 520 280 120 . 240 520 260 . . 260 480 460 80 80 780 . 20 Destroy 0b10 Robot/NC 485 | 10 35 5 . . 100 . 25 75 . 5 . 10 10 5 10 . 15 20 65 5 40 45 5 . Destroy Leader 1126 | . 54 . . 20 172 10 112 174 50 10 . 40 112 20 . . 50 92 52 . . 158 . . Allied During Kill 1500 | . . . . . . . . . . . . 204 100 . . . . 65 428 85 120 498 . . Successful Hack 160 | . 21 . . . 7 . 18 54 . . . . 12 . . . . 12 . . . . 36 . Select Force Hacks 30 | . 30 . . . . . . . . . . . . . . . . . . . . . . . Disable Machine 525 | . 30 . . . 90 30 75 105 . . . . 30 . . . . 45 . 15 45 60 . . Anti-Garrison Action 250 | . . . . . . 250 . . . . . . . . . . . . . . . . . . Destroy Structure 614 | . 2 . . . 23 80 29 28 . . . . 50 . . . . 56 140 24 2 178 2 . Advance Influence 600 | . . . . . . . . . . . . . 450 . . . . 150 . . . . . . Lose Combat Pursuer 300 | . . . . 15 30 . 15 30 . . . . 75 30 . . . 105 . . . . . . Influence Decreases 11038 | 10 278 110 9 195 570 158 862 1123 720 284 . 433 746 879 120 . 304 621 654 682 492 959 680 149 Entered New Map 3236 | . . 70 9 . . 138 454 369 200 29 . . 24 251 21 . . 9 218 404 266 155 510 109 Time Decay 6372 | 10 278 40 . 195 460 . 398 714 490 255 . 413 522 568 99 . 294 392 416 198 206 254 170 . Search Patrol Dispatched 100 | . . . . . . . . . . . . . 100 . . . . . . . . . . . Lost Part 510 | . . . . . 110 20 10 40 30 . . . . 60 . . 10 30 . . . 160 . 40 Lost Ally 820 | . . . . . . . . . . . . 20 100 . . . . 190 20 80 20 390 . . Squads Dispatched 61 | . 4 . . . 3 . 6 15 . . . . 9 . . . . 7 1 . . 12 2 2 Investigation 20 | . 3 . . . 1 . . 5 . . . . 5 . . . . 3 . . . 2 1 . Extermination 11 | . . . . . . . . 5 . . . . 3 . . . . 2 . . . 1 . . Reinforcement 19 | . 1 . . . 2 . 3 2 . . . . 1 . . . . 2 1 . . 5 . 2 Assault 8 | . . . . . . . . 3 . . . . . . . . . . . . . 4 1 . Garrison 3 | . . . . . . . 3 . . . . . . . . . . . . . . . . . Intercept . | . . . . . . . . . . . . . . . . . . . . . . . . . Searches Triggered 1 | . . . . . . . . . . . . . 1 . . . . . . . . . . . Data Miner Redirects 1 | . . . . . . . . . . . . . . . . . . 1 . . . . . . Construction Impeded . | . . . . . . . . . . . . . . . . . . . . . . . . . Haulers Reinforced 3 | . . . . . . . . . . . . . . . . . . 1 . . . 2 . . Active Scanning Responses . | . . . . . . . . . . . . . . . . . . . . . . . . . Cargo Convoy Interrupts . | . . . . . . . . . . . . . . . . . . . . . . . . . Stealth | -11 -10 -10 -10 -9 -8 -8 -8 -7 -7 -7 -7 -6 -6 -6 -6 -6 -5 -5 -5 -5 -5 -5 -4 -4 --------- Run | Yrd Mat Min Exi Min Mat Gar Mat Fac Low Low Zio Pro Fac Low Low Dat Pro Fac Ext Cet Arc Hub Fac DSF Distress Signals 17 | . . . . . 4 . 6 . . . . . 1 . . . 1 2 . 1 . 2 . . Communications Jammed 30 | . . . . . . . . . . . . . . . . . . 1 . . . 29 . . Distress Signals 30 | . . . . . . . . . . . . . . . . . . 1 . . . 29 . . Times Spotted 328 | . 17 . . 9 46 14 29 33 11 4 . 2 33 14 . . 14 32 22 5 8 33 . 2 Peak Tracking Total 11 | . 4 . . 3 6 5 6 3 3 3 . 1 5 6 . . 5 4 5 5 2 11 . 2 Tactical Retreats 19 | . . . . 1 2 . 1 2 . . . . 5 1 . . . 7 . . . . . . Traps | -11 -10 -10 -10 -9 -8 -8 -8 -7 -7 -7 -7 -6 -6 -6 -6 -6 -5 -5 -5 -5 -5 -5 -4 -4 ------- Run | Yrd Mat Min Exi Min Mat Gar Mat Fac Low Low Zio Pro Fac Low Low Dat Pro Fac Ext Cet Arc Hub Fac DSF Traps Triggered 13 | . 2 . . . . . 1 5 . . . . 2 . . . . . 3 . . . . . Indirectly 2 | . 1 . . . . . . 1 . . . . . . . . . . . . . . . . Trap Hack Attempts . | . . . . . . . . . . . . . . . . . . . . . . . . . Triggered . | . . . . . . . . . . . . . . . . . . . . . . . . . Disarmed . | . . . . . . . . . . . . . . . . . . . . . . . . . Reprogrammed . | . . . . . . . . . . . . . . . . . . . . . . . . . Reused . | . . . . . . . . . . . . . . . . . . . . . . . . . Traps Extracted . | . . . . . . . . . . . . . . . . . . . . . . . . . Installed . | . . . . . . . . . . . . . . . . . . . . . . . . . Triggered . | . . . . . . . . . . . . . . . . . . . . . . . . . Machines | -11 -10 -10 -10 -9 -8 -8 -8 -7 -7 -7 -7 -6 -6 -6 -6 -6 -5 -5 -5 -5 -5 -5 -4 -4 ---------- Run | Yrd Mat Min Exi Min Mat Gar Mat Fac Low Low Zio Pro Fac Low Low Dat Pro Fac Ext Cet Arc Hub Fac DSF Machines Disabled 43 | . 2 . . . 6 7 5 7 . . . . 2 1 . . . 3 2 1 3 4 . . Max in Single Turn 2 | . 2 . . . 2 1 2 1 . . . . . 1 . . . . 2 1 . 1 . . Garrison Access 3 | . . . . . . . . 1 . . . . . . . . . 1 . . . 1 . . Garrison Relay 3 | . . . . . . 3 . . . . . . . . . . . . . . . . . . Phase Generator 1 | . . . . . . 1 . . . . . . . . . . . . . . . . . . Network Hub 2 | . . . . . . . . . . . . . . . . . . . . . . 2 . . Machines Repaired . | . . . . . . . . . . . . . . . . . . . . . . . . . Machines Dismantled 2 | . . . . . . . . . . . . . . . . . . . . . . 2 . . Machines Sabotaged . | . . . . . . . . . . . . . . . . . . . . . . . . . Overloaded Fab Kills . | . . . . . . . . . . . . . . . . . . . . . . . . . Hacking | -11 -10 -10 -10 -9 -8 -8 -8 -7 -7 -7 -7 -6 -6 -6 -6 -6 -5 -5 -5 -5 -5 -5 -4 -4 --------- Run | Yrd Mat Min Exi Min Mat Gar Mat Fac Low Low Zio Pro Fac Low Low Dat Pro Fac Ext Cet Arc Hub Fac DSF Machines Accessed 53 | . 3 . 1 . 6 1 4 15 . 3 1 . 3 2 . 4 . 5 . 1 . . 4 . Terminals 16 | . 2 . . . 3 1 2 5 . . . . . 1 . . . . . 1 . . 1 . Fabricators 12 | . . . . . . . . 4 . . . . 3 . . . . 4 . . . . 1 . Repair Stations 4 | . . . . . . . . 2 . . . . . . . . . . . . . . 2 . Recycling Units 2 | . 1 . . . . . . 1 . . . . . . . . . . . . . . . . Scanalyzers 4 | . . . . . 2 . 1 1 . . . . . . . . . . . . . . . . Garrison Access 5 | . . . . . 1 . 1 2 . . . . . . . . . 1 . . . . . . Total Hacks 173 | . 7 . 4 . 16 2 7 50 . 5 2 . 8 7 . 30 . 12 . 2 . . 21 . Successful 115 | . 4 . 4 . 6 . 3 31 . 5 2 . 5 7 . 30 . 7 . . . . 11 . Failed 56 | . 3 . . . 9 2 3 19 . . . . 3 . . . . 5 . 2 . . 10 . Catastrophic 6 | . . . . . . 1 . 4 . . . . . . . . . 1 . . . . . . Database Lockouts 2 | . . . . . 1 . 1 . . . . . . . . . . . . . . . . . Manual 87 | . 7 . . . 8 . 2 14 . . 1 . 14 . . . . 20 6 1 . 12 2 . Terminals 39 | . 5 . . . 8 2 2 13 . . . . . 6 . . . . . 2 . . 1 . Fabricators 32 | . . . . . . . . 7 . . . . 8 . . . . 10 . . . . 7 . Repair Stations 19 | . . . . . . . . 6 . . . . . . . . . . . . . . 13 . Recycling Units 3 | . 2 . . . . . . 1 . . . . . . . . . . . . . . . . Scanalyzers 26 | . . . . . 5 . 3 18 . . . . . . . . . . . . . . . . Garrison Access 12 | . . . . . 3 . 2 5 . . . . . . . . . 2 . . . . . . Terminal Hacks 60 | . 3 . 4 . 3 . 2 3 . 5 2 . . 7 . 30 . . . . . . 1 . Record 25 | . . . 4 . . . . . . 3 . . . 7 . 11 . . . . . . . . Part Schematic 16 | . 2 . . . 1 . . 1 . . 2 . . . . 10 . . . . . . . . Robot Schematic 6 | . . . . . . . . . . . . . . . . 6 . . . . . . . . Prototype ID Bank 3 | . . . . . . . . . . . . . . . . 3 . . . . . . . . Open Door 2 | . . . . . . . . . . 2 . . . . . . . . . . . . . . Open DSF 1 | . . . . . . . . . . . . . . . . . . . . . . . 1 . Branch Access Points 3 | . 1 . . . 1 . . 1 . . . . . . . . . . . . . . . . Terminal Index 1 | . . . . . . . . 1 . . . . . . . . . . . . . . . . Scanalyzer Index 1 | . . . . . 1 . . . . . . . . . . . . . . . . . . . Transport Status 1 | . . . . . . . 1 . . . . . . . . . . . . . . . . . Hauler Manifests 1 | . . . . . . . 1 . . . . . . . . . . . . . . . . . Fabricator Hacks 19 | . . . . . . . . 5 . . . . 4 . . . . 5 . . . . 5 . Load Schematic 11 | . . . . . . . . 2 . . . . 3 . . . . 3 . . . . 3 . Build 8 | . . . . . . . . 3 . . . . 1 . . . . 2 . . . . 2 . Repair Station Hacks 5 | . . . . . . . . 1 . . . . . . . . . . . . . . 4 . Scan Component 4 | . . . . . . . . 1 . . . . . . . . . . . . . . 3 . Repair 1 | . . . . . . . . . . . . . . . . . . . . . . . 1 . Recycling Unit Hacks . | . . . . . . . . . . . . . . . . . . . . . . . . . Scanalyzer 20 | . . . . . 2 . 1 17 . . . . . . . . . . . . . . . . Insert Component 4 | . . . . . . . . 4 . . . . . . . . . . . . . . . . Analyze 7 | . . . . . . . . 7 . . . . . . . . . . . . . . . . Retrieve Study 9 | . . . . . 2 . 1 6 . . . . . . . . . . . . . . . . Garrison Access Hacks 4 | . . . . . 1 . . 2 . . . . . . . . . 1 . . . . . . Unlock Access 1 | . . . . . 1 . . . . . . . . . . . . . . . . . . . Seal Access 2 | . . . . . . . . 1 . . . . . . . . . 1 . . . . . . Coupler Status 1 | . . . . . . . . 1 . . . . . . . . . . . . . . . . Unauthorized Hacks 7 | . 1 . . . . . . 3 . . . . 1 . . . . 1 . . . . 1 . Terminals 1 | . . . . . . . . 1 . . . . . . . . . . . . . . . . Botnet 1 | . . . . . . . . 1 . . . . . . . . . . . . . . . . Fabricators 3 | . . . . . . . . . . . . . 1 . . . . 1 . . . . 1 . Recompile 3 | . . . . . . . . . . . . . 1 . . . . 1 . . . . 1 . Repair Stations 1 | . . . . . . . . 1 . . . . . . . . . . . . . . . . Mechanics 1 | . . . . . . . . 1 . . . . . . . . . . . . . . . . Recycling Units 2 | . 1 . . . . . . 1 . . . . . . . . . . . . . . . . Recyclers 1 | . . . . . . . . 1 . . . . . . . . . . . . . . . . Tunnel 1 | . 1 . . . . . . . . . . . . . . . . . . . . . . . Scanalyzers . | . . . . . . . . . . . . . . . . . . . . . . . . . Garrison Access . | . . . . . . . . . . . . . . . . . . . . . . . . . Data Cores Recovered 1 | . . . . . . . . 1 . . . . . . . . . . . . . . . . Used . | . . . . . . . . . . . . . . . . . . . . . . . . . Hacking Detections 35 | . 1 . . . 6 1 2 15 . . . . 2 1 . . . 4 . 1 . . 2 . Full Trace Events 11 | . . . . . 1 1 . 4 . . . . 2 1 . . . 2 . . . . . . Feedback Events . | . . . . . . . . . . . . . . . . . . . . . . . . . Feedback Blocked . | . . . . . . . . . . . . . . . . . . . . . . . . . Robot Schematics Acquired 6 | . . . . . . . . . . . . . . . . 6 . . . . . . . . Robots Built . | . . . . . . . . . . . . . . . . . . . . . . . . . Authchips . | . . . . . . . . . . . . . . . . . . . . . . . . . Time . | . . . . . . . . . . . . . . . . . . . . . . . . . Total Robot Build Rating . | . . . . . . . . . . . . . . . . . . . . . . . . . Part Schematics Acquired 20 | . 2 . . . 1 . . 5 . . 2 . . . . 10 . . . . . . . . Parts Built 14 | . . . . . . . . 4 . . . . 2 . . . . 4 . . . . 4 . Authchips 2 | . . . . . . . . . . . . . . . . . . . . . . . 2 . Time 469 | . . . . . . . . 155 . . . . 42 . . . . 104 . . . . 168 . Total Part Build Rating 50 | . . . . . . . . 14 . . . . 8 . . . . 12 . . . . 16 . Part Studies Acquired 9 | . . . . . 2 . 1 6 . . . . . . . . . . . . . . . . Parts Repaired 1 | . . . . . . . . . . . . . . . . . . . . . . . 1 . Time 22 | . . . . . . . . . . . . . . . . . . . . . . . 22 . Parts Recycled . | . . . . . . . . . . . . . . . . . . . . . . . . . Recycled Matter . | . . . . . . . . . . . . . . . . . . . . . . . . . Retrieved Matter . | . . . . . . . . . . . . . . . . . . . . . . . . . Retrieved Components . | . . . . . . . . . . . . . . . . . . . . . . . . . Parts Scanalyzed 4 | . . . . . . . . 4 . . . . . . . . . . . . . . . . Part Schematics Acquired 4 | . . . . . . . . 4 . . . . . . . . . . . . . . . . Parts Damaged . | . . . . . . . . . . . . . . . . . . . . . . . . . Bothacking | -11 -10 -10 -10 -9 -8 -8 -8 -7 -7 -7 -7 -6 -6 -6 -6 -6 -5 -5 -5 -5 -5 -5 -4 -4 ------------ Run | Yrd Mat Min Exi Min Mat Gar Mat Fac Low Low Zio Pro Fac Low Low Dat Pro Fac Ext Cet Arc Hub Fac DSF Used RIF Installer . | . . . . . . . . . . . . . . . . . . . . . . . . . Robots Hacked . | . . . . . . . . . . . . . . . . . . . . . . . . . Non-combat . | . . . . . . . . . . . . . . . . . . . . . . . . . Combat . | . . . . . . . . . . . . . . . . . . . . . . . . . Robot Hacks Applied . | . . . . . . . . . . . . . . . . . . . . . . . . . Relay Couplers Released 20 | . . . . . . 18 . . . . . . . . . . . . . . . 2 . . Machine Destruction 16 | . . . . . . 14 . . . . . . . . . . . . . . . 2 . . Programmers 4 | . . . . . . 4 . . . . . . . . . . . . . . . . . . Fabnet Peak Effective % . | . . . . . . . . . . . . . . . . . . . . . . . . . Robots Rewired 11 | . . . . . . . . . . . . . . . . . . . 11 . . . . . Allies Hacked 1 | . . . . . . . . . . . . . 1 . . . . . . . . . . . Hacks Repelled 1 | . . . . . . . . . . . . . 1 . . . . . . . . . . . Allies | -11 -10 -10 -10 -9 -8 -8 -8 -7 -7 -7 -7 -6 -6 -6 -6 -6 -5 -5 -5 -5 -5 -5 -4 -4 -------- Run | Yrd Mat Min Exi Min Mat Gar Mat Fac Low Low Zio Pro Fac Low Low Dat Pro Fac Ext Cet Arc Hub Fac DSF Total Allies 53 | . . . . . . . . . . . 6 . 7 . . . . 12 19 5 . 4 . . Largest Group 19 | . . . . . . . . . . . 6 6 4 . . . . 3 19 19 19 18 . . Highest-Rated Group 1076 | . . . . . . . . . . . 353 353 198 . . . . 210 802 1076 1076 939 . . Highest-Rated Ally 159 | . . . . . . . . . . . 96 96 85 . . . . 70 159 159 143 96 . . Zionite Dispatches 13 | . . . . . . . . . . . . . 4 . . . . 5 2 . . 2 . . Heavy 1 | . . . . . . . . . . . . . 1 . . . . . . . . . . . Light 3 | . . . . . . . . . . . . . . . . . . 1 1 . . 1 . . Recon 2 | . . . . . . . . . . . . . 1 . . . . . 1 . . . . . Fire 2 | . . . . . . . . . . . . . 1 . . . . 1 . . . . . . Hacker 2 | . . . . . . . . . . . . . . . . . . 2 . . . . . . Resource Resupply 1 | . . . . . . . . . . . . . 1 . . . . . . . . . . . Offense Resupply 1 | . . . . . . . . . . . . . . . . . . 1 . . . . . . Infowar Resupply 1 | . . . . . . . . . . . . . . . . . . . . . . 1 . . Initial Warlord ECA Mod 6 | . . . . . . . 6 5 5 5 5 . . . . . . . . . . . . . Total Orders 11 | . . . . . . . . . . . . . 2 2 . . 1 2 . . 3 1 . . STAY 2 | . . . . . . . . . . . . . 1 . . . . 1 . . . . . . ROAM 2 | . . . . . . . . . . . . . . . . . 1 . . . 1 . . . FOLLOW 2 | . . . . . . . . . . . . . . . . . . . . . 2 . . . DROP 3 | . . . . . . . . . . . . . 1 . . . . 1 . . . 1 . . EXPLORE 1 | . . . . . . . . . . . . . . 1 . . . . . . . . . . RETURN 1 | . . . . . . . . . . . . . . 1 . . . . . . . . . . Ally Attacks 517 | . . . . . . . . . . . . 59 55 . . . . 56 101 37 34 175 . . Total Damage 15137 | . . . . . . . . . . . . 1769 2538 . . . . 1974 2181 1194 979 4502 . . Kills 93 | . . . . . . . . . . . . 14 15 . . . . 13 10 5 4 32 . . Allies Corrupted 1 | . . . . . . . . . . . . . . . . . . . . . . 1 . . Allies Melted 1 | . . . . . . . . . . . . . . . . . . . . . . 1 . . Intel | -11 -10 -10 -10 -9 -8 -8 -8 -7 -7 -7 -7 -6 -6 -6 -6 -6 -5 -5 -5 -5 -5 -5 -4 -4 ------- Run | Yrd Mat Min Exi Min Mat Gar Mat Fac Low Low Zio Pro Fac Low Low Dat Pro Fac Ext Cet Arc Hub Fac DSF Active Infowar (turns) 19444 | . . . . . . 179 . 2500 1293 1770 2365 1854 898 1704 2520 185 1338 924 919 19 249 499 187 41 Optics 7028 | . . . . . . . . . . . . . 898 1704 2520 185 1338 383 . . . . . . Sensors 17560 | . . . . . . 179 . 2155 1293 1770 2365 1854 542 1657 2520 185 1073 831 237 . 249 437 183 30 Terrain 473 | . . . . . . . . . . . . . . 24 . . . . . . . 293 156 . Traps 2236 | . . . . . . . . . . . . . . 1 . . . 777 776 19 248 415 . . Seismic 304 | . . . . . . . . 304 . . . . . . . . . . . . . . . . T.N.C. 4 | . . . . . . . . 4 . . . . . . . . . . . . . . . . Jamming 1129 | . . . . . . . . 37 . . . . . . . . . 420 454 . . 62 117 39 Robot Analysis Total . | . . . . . . . . . . . . . . . . . . . . . . . . . Derelict Logs Recovered 10 | . . . . . . . . . 2 1 1 3 . 1 2 . . . . . . . . . Drone Launches 2 | . . . . . . . . . . . . . . 1 . . 1 . . . . . . . Drone Recoveries 2 | . . . . . . . . . . . . . . 1 . . 1 . . . . . . . Zionite Intel Received 2 | . . . . . . . . . . . . . . . . . . 1 . . . 1 . . Unaware Analyses 1 | . . . . . . . . . . . . . . . . . . . . . . 1 . . Active Terminals 1 | . . . . . . . . . . . . . . . . . . 1 . . . . . . Exploration | -11 -10 -10 -10 -9 -8 -8 -8 -7 -7 -7 -7 -6 -6 -6 -6 -6 -5 -5 -5 -5 -5 -5 -4 -4 ------------- Run | Yrd Mat Min Exi Min Mat Gar Mat Fac Low Low Zio Pro Fac Low Low Dat Pro Fac Ext Cet Arc Hub Fac DSF Turns Passed 27439 | 165 648 81 303 522 2182 946 945 3264 1293 1793 2365 1999 1447 1704 2520 185 1338 926 1015 416 428 544 356 54 Spaces Moved 12860 | 83 296 49 173 201 1145 502 423 1648 696 817 988 775 506 626 1050 79 531 533 638 289 237 332 213 30 Core 6 | 6 . . . . . . . . . . . . . . . . . . . . . . . . Treads 10054 | 77 296 49 173 201 937 502 423 1648 696 817 988 740 506 514 1050 79 358 . . . . . . . Legs 35 | . . . . . . . . . . . . 35 . . . . . . . . . . . . Wheels 2765 | . . . . . 208 . . . . . . . . 112 . . 173 533 638 289 237 332 213 30 Hover . | . . . . . . . . . . . . . . . . . . . . . . . . . Flight . | . . . . . . . . . . . . . . . . . . . . . . . . . Fastest Speed 50 | 50 160 160 160 240 85 160 160 148 156 158 238 162 162 205 237 237 105 101 116 116 116 110 112 112 Average Speed 181 | 152 162 160 175 240 147 160 160 152 169 211 238 238 241 232 238 237 199 112 116 116 116 118 114 112 Slowest Speed 400 | 160 240 160 240 240 240 160 160 160 240 238 238 330 312 400 241 237 241 135 116 116 116 145 125 112 Overloaded Moves . | . . . . . . . . . . . . . . . . . . . . . . . . . Propulsion Burnouts . | . . . . . . . . . . . . . . . . . . . . . . . . . Robots Hopped . | . . . . . . . . . . . . . . . . . . . . . . . . . Potential Cave-ins . | . . . . . . . . . . . . . . . . . . . . . . . . . Cave-ins Triggered . | . . . . . . . . . . . . . . . . . . . . . . . . . Exploration Rate (%) 54 | 6 48 13 53 36 69 59 47 43 76 89 89 80 17 84 98 74 61 18 65 60 84 46 3 39 Regions Visited 24 Branch Regions 15 Pre-discovered Areas 7 | . 1 . 1 . . . . . 1 1 2 . . . . 1 . . . . . . . . Known Exits Taken 19 | . 1 . . . 1 . 1 1 1 1 1 1 1 1 1 1 1 1 1 1 1 1 1 . Unknown Exits Taken 4 | 1 . 1 1 1 . . . . . . . . . . . . . . . . . . . . Scrap Searched 24 | . . . . . . . . . 5 2 2 5 . 4 3 . 3 . . . . . . . Spaces Dug 63 | . . . . . 3 1 1 17 . . . . 18 . . . 1 14 1 . . 6 1 . Terrain Destroyed 697 | . . . . . 28 115 33 28 89 49 . . 32 15 . . 124 14 106 . . 63 1 . Melee 63 | . . . . . 3 1 1 17 . . . . 18 . . . 1 14 1 . . 6 1 . Projectile . | . . . . . . . . . . . . . . . . . . . . . . . . . AOE 634 | . . . . . 25 114 32 11 89 49 . . 14 15 . . 123 . 105 . . 57 . . Terrain Rammed . | . . . . . . . . . . . . . . . . . . . . . . . . . Walls Destroyed . | . . . . . . . . . . . . . . . . . . . . . . . . . Machines Disabled . | . . . . . . . . . . . . . . . . . . . . . . . . . Actions | -11 -10 -10 -10 -9 -8 -8 -8 -7 -7 -7 -7 -6 -6 -6 -6 -6 -5 -5 -5 -5 -5 -5 -4 -4 --------- Run | Yrd Mat Min Exi Min Mat Gar Mat Fac Low Low Zio Pro Fac Low Low Dat Pro Fac Ext Cet Arc Hub Fac DSF Total 15842 | 101 370 50 174 214 1442 595 606 2182 788 874 1006 900 650 850 1063 78 765 772 831 373 372 423 317 46 Wait 1391 | . 15 . . . 73 36 85 248 45 12 12 76 31 156 . . 148 110 65 67 100 23 81 8 Move 12836 | 82 295 48 172 200 1145 500 422 1647 695 816 987 774 505 625 1049 78 530 532 637 288 236 331 212 30 Hop . | . . . . . . . . . . . . . . . . . . . . . . . . . Pick Up 220 | 4 8 1 . . 38 4 10 39 8 14 3 6 16 7 2 . 15 20 4 4 5 4 8 . Fast Attach 116 | 6 3 . . . 12 . 3 21 2 2 . 10 4 13 2 . 7 13 1 2 4 5 4 2 Attach 104 | . . . . . 16 2 2 14 9 4 1 1 8 8 . . 14 7 . 1 1 7 7 2 Detach 15 | . . . . . 1 . . 1 1 . . . . 4 . . 1 4 . 1 1 . . 1 Swap 149 | . . . 1 . 16 15 14 35 . . . 4 6 . 1 . 2 10 25 2 3 11 3 1 Drop 260 | . 2 . 1 . 29 6 17 51 8 15 3 16 21 13 7 . 21 21 8 7 9 5 . . Fire 181 | 9 47 1 . 14 6 7 5 6 17 2 . . 2 18 . . 7 . 32 1 . 7 . . Melee 536 | . . . . . 106 25 48 120 3 9 . 13 57 6 2 . 18 55 33 . 13 24 2 2 Ram . | . . . . . . . . . . . . . . . . . . . . . . . . . Kick . | . . . . . . . . . . . . . . . . . . . . . . . . . Crush . | . . . . . . . . . . . . . . . . . . . . . . . . . Escape Stasis 24 | . . . . . . . . . . . . . . . . . . . 24 . . . . . Rewire 4 | . . . . . . . . . . . . . . . . . 2 . 2 . . . . . Trap . | . . . . . . . . . . . . . . . . . . . . . . . . . Miscellaneous 6 | . . . . . . . . . . . . . . . . . . . . . . 6 . . Route ------- -11/Scrapyard -10/Materials (discovered 2 exits: [*Mat] / *Min) -10/Mines -10/Exiles -9/Mines -8/Materials (discovered 2 exits: *Fac / Gar) -8/Garrison (discovered 2 exits: *Mat x2) -8/Materials (discovered 2 exits: *Fac x2) -7/Factory (discovered 3 exits: *Fac / *Low x2) -7/Lower Caves -7/Lower Caves (discovered 2 exits: *Fac / *Zio) -7/Zion -6/Proximity Caves -6/Factory -6/Lower Caves -6/Lower Caves (discovered 2 exits: *Fac / *Dat) -6/Data Miner -5/Proximity Caves -5/Factory -5/Extension (discovered 2 exits: *Fac / *Cet) -5/Cetus -5/Archives (discovered 2 exits: *Fac / *Hub) -5/Hub_04(d) -4/Factory -4/DSF History --------- Turn | Location | Event 14 | -11/Scrapyard | Discovered new exit (range 15) 166 | -11/Scrapyard | Entered Materials 320 | -10/Materials | Build established: Mutant 569 | -10/Materials | Identified exit to Mines 584 | -10/Materials | Discovered new exit (range 5) 814 | -10/Materials | Entered Mines 889 | -10/Mines | Deemed a non-threat by the Exiles lab entrance 889 | -10/Mines | Discovered new exit (range 5) 895 | -10/Mines | Entered Exiles 934 | -10/Exiles | Met 8R-AWN 961 | -10/Exiles | Met EX-HEX 1006 | -10/Exiles | Met EX-BIN 1049 | -10/Exiles | Learned location of Zion (-7) 1063 | -10/Exiles | Met EX-DEC 1167 | -10/Exiles | Discovered new exit (range 14) 1198 | -10/Exiles | Entered Mines 1610 | -9/Mines | Discovered new exit (range 12) 1720 | -9/Mines | Entered Materials 1720 | -8/Materials | Evolved 4 slots: Propulsion x2, Utility x2 2398 | -8/Materials | Lost 3 parts (3n) 2521 | -8/Materials | Lost 3 parts (2n1u) 2723 | -8/Materials | Lost 3 parts (1p2n) 2808 | -8/Materials | Core integrity fell below 50% 2889 | -8/Materials | Build established: Scavenger-Mutant 2959 | -8/Materials | Discovered new exit (range 16) 3867 | -8/Materials | Central database locked down 3902 | -8/Materials | Identified exit to Garrison 3902 | -8/Materials | Entered Garrison 3922 | -8/Garrison | Triggered checkpoint 4044 | -8/Garrison | Phase Generator disabled 4058 | -8/Garrison | Garrison Relay disabled 4291 | -8/Garrison | Triggered checkpoint 4368 | -8/Garrison | Discovered new exit (range 10) 4411 | -8/Garrison | Identified exit to Materials 4414 | -8/Garrison | Attempted to access garrison exit controls, blocked by remote lockdown 4568 | -8/Garrison | Triggered checkpoint 4722 | -8/Garrison | Garrison Relay disabled 4742 | -8/Garrison | Triggered checkpoint 4759 | -8/Garrison | Garrison Relay disabled 4828 | -8/Garrison | Discovered exit to Materials (range 12) 4848 | -8/Garrison | Entered Materials 4917 | -8/Materials | Central database locked down 4964 | -8/Materials | Garrison activated, responded to threat 5135 | -8/Materials | Discovered new exit (range 16) 5186 | -8/Materials | Core integrity fell below 20% 5762 | -8/Materials | Discovered new exit (range 3) 5763 | -8/Materials | Identified exit to Factory 5793 | -8/Materials | Entered Factory 5793 | -7/Factory | Evolved 2 slots: Utility x2 6006 | -7/Factory | Fabricated Cargo Storage Unit? 6375 | -7/Factory | Build established: Gladiator 6947 | -7/Factory | Fabricated Imp. Corruption Screen (x2) 7166 | -7/Factory | Identified exit to Lower Caves 7224 | -7/Factory | Discovered new exit (range 9) 7893 | -7/Factory | Fabricated Huge Storage Unit? 8506 | -7/Factory | Found Prototype Launcher 8506 | -7/Factory | Identified Rocket Array 8593 | -7/Factory | First assault squad dispatched 9057 | -7/Factory | Entered Lower Caves 9125 | -7/Lower Caves | Met a Warlord Commander 9126 | -7/Lower Caves | Learned location of Warlord (-5) 9127 | -7/Lower Caves | Warlord Commander delivered Encrypted Comm Array 9128 | -7/Lower Caves | Learned Factory security intel 9442 | -7/Lower Caves | Encountered a Warlord checkpoint 9464 | -7/Lower Caves | Learned Factory stockpile data 10011 | -7/Lower Caves | Discovered new exit (range 16) 10044 | -7/Lower Caves | Identified exit to Lower Caves 10075 | -7/Lower Caves | Attracted the attention of an 0b10 checkpoint 10350 | -7/Lower Caves | Entered another Lower Caves area 10463 | -7/Lower Caves | Discovered new exit (range 14) 10482 | -7/Lower Caves | Identified exit to Factory 11540 | -7/Lower Caves | Entered an active Warlord outpost 11585 | -7/Lower Caves | Learned Factory stockpile data 11585 | -7/Lower Caves | Learned location of Armory (-4) 11632 | -7/Lower Caves | Learned Factory interactive machine intel 11913 | -7/Lower Caves | Discovered new exit (range 10) 12138 | -7/Lower Caves | Identified exit to Zion 12143 | -7/Lower Caves | Entered Zion 12310 | -7/Zion | Discovered new exit (range 9) 12329 | -7/Zion | Identified exit to Proximity Caves 12465 | -7/Zion | Found CR-A16's Pointy Stick 12632 | -7/Zion | Learned Factory interactive machine intel 13072 | -7/Zion | Learned Factory emergency access door positions 13515 | -7/Zion | Learned location of Data Miner (-6) 13637 | -7/Zion | Given A8's code to call for help 13866 | -7/Zion | Enhanced Grunt warped into view, answering call for help 13867 | -7/Zion | Enhanced Grunt warped into view, answering call for help 13937 | -7/Zion | Met Imprinter 13975 | -7/Zion | Imprinted 13977 | -7/Zion | Declared Zion's savior 14191 | -7/Zion | Visited the Megawrench Repair Shop 14191 | -7/Zion | Megawrench repaired 8 parts 14508 | -7/Zion | Entered Proximity Caves 14508 | -6/Proximity Caves | Accompanied by 6 allies 14528 | -6/Proximity Caves | Learned Factory emergency access door positions 14684 | -6/Proximity Caves | Spotter reported a threat 14842 | -6/Proximity Caves | Learned location of 1 exit from Lower Caves 14959 | -6/Proximity Caves | Spotter reported a threat 15067 | -6/Proximity Caves | Spotter reported a threat 15375 | -6/Proximity Caves | Learned Factory emergency access door positions 15613 | -6/Proximity Caves | Spotted B-75 Beast 15620 | -6/Proximity Caves | Core integrity fell below 50% 15640 | -6/Proximity Caves | Allies destroyed B-75 Beast 16033 | -6/Proximity Caves | Discovered exit to Factory (range 15) 16071 | -6/Proximity Caves | Build established: Scavenger-Gladiator 16507 | -6/Proximity Caves | Entered Factory 16507 | -6/Factory | Accompanied by 2 allies 16507 | -6/Factory | Evolved 2 slots: Utility x2 16511 | -6/Factory | Loaded intel: 54 interactive machine locations 16598 | -6/Factory | Zion Recon squad teleported in 16789 | -6/Factory | Discovered new exit (range 8) 16806 | -6/Factory | Identified exit to Lower Caves 16857 | -6/Factory | Search patrols dispatched 16908 | -6/Factory | Fabricated Arm. Huge Wheel? 16988 | -6/Factory | Zion Fire squad teleported in 17099 | -6/Factory | Zion Heavy squad teleported in 17171 | -6/Factory | Build established: Hacker-Gladiator 17518 | -6/Factory | Zion Resource Resupply teleported in 17722 | -6/Factory | Build established: Scavenger-Gladiator 17954 | -6/Factory | Entered Lower Caves 17955 | -6/Lower Caves | Identified exit to Lower Caves 18014 | -6/Lower Caves | Learned Factory garrison access intel 18113 | -6/Lower Caves | Build established: Gladiator 18452 | -6/Lower Caves | Attracted the attention of an 0b10 base 18507 | -6/Lower Caves | Lost 3 parts (1n2u) 18510 | -6/Lower Caves | Destroyed 7 combat bots 18523 | -6/Lower Caves | Learned Research terminal intel 18523 | -6/Lower Caves | Learned Extension security intel 18523 | -6/Lower Caves | Learned Armory emergency access door positions 18523 | -6/Lower Caves | Learned 8 Research zone layouts 18848 | -6/Lower Caves | Entered a destroyed Warlord outpost 19088 | -6/Lower Caves | Build established: Mutant 19523 | -6/Lower Caves | Found DCF Scrap (13 items) 19637 | -6/Lower Caves | Build established: Gladiator 19658 | -6/Lower Caves | Entered another Lower Caves area 19825 | -6/Lower Caves | Discovered new exit (range 21) 19873 | -6/Lower Caves | Identified exit to Data Miner 20689 | -6/Lower Caves | Found DCF Scrap (12 items) 21003 | -6/Lower Caves | Learned Factory machine intel 21060 | -6/Lower Caves | Learned Factory stockpile data 21306 | -6/Lower Caves | Discovered new exit (range 14) 21353 | -6/Lower Caves | Identified exit to Factory 22178 | -6/Lower Caves | Entered Data Miner 22178 | -6/Data Miner | Discovered new exit (range 6) 22209 | -6/Data Miner | Met Data Miner 22271 | -6/Data Miner | Learned location of Section 7 (-3) 22271 | -6/Data Miner | Acquired the access code to Warlord's prototype stash 22309 | -6/Data Miner | Received God Mode back door access code from Data Miner 22361 | -6/Data Miner | Identified exit to Proximity Caves 22363 | -6/Data Miner | Entered Proximity Caves 22437 | -5/Proximity Caves | Attracted the attention of an 0b10 checkpoint 22589 | -5/Proximity Caves | Spotted B-75 Beast 22729 | -5/Proximity Caves | Revealed the true nature of CR-A16's Pointy Stick 22732 | -5/Proximity Caves | Destroyed B-75 Beast 23068 | -5/Proximity Caves | Spotter reported a threat 23417 | -5/Proximity Caves | Discovered exit to Factory (range 7) 23701 | -5/Proximity Caves | Entered Factory 23701 | -5/Factory | Evolved 2 slots: Propulsion x1, Utility x1 23704 | -5/Factory | Loaded intel: 266 machine locations 23705 | -5/Factory | Loaded intel: 53 interactive machine locations 23706 | -5/Factory | Loaded intel: 4 garrison access locations 23732 | -5/Factory | Zion Offense Resupply teleported in 23844 | -5/Factory | Retrieved Zion intel report: Active Terminals 23845 | -5/Factory | Zion Light squad teleported in 23888 | -5/Factory | Zion Hacker squad teleported in 23922 | -5/Factory | Lost 3 allies 24100 | -5/Factory | Found Powered Armor 24206 | -5/Factory | Build established: Hauler-Gladiator 24243 | -5/Factory | Zion Fire squad teleported in 24289 | -5/Factory | Zion Hacker squad teleported in 24330 | -5/Factory | Lost 6 allies 24384 | -5/Factory | Incoming investigation squad redirected 24400 | -5/Factory | Fabricated Arm. Huge Wheel (x2) 24487 | -5/Factory | Fabricated Arm. Wheel? 24602 | -5/Factory | Discovered new exit (range 12) 24617 | -5/Factory | Identified exit to Extension 24627 | -5/Factory | Entered Extension 24840 | -5/Extension | Rescued a captive Derelict 24852 | -5/Extension | Zion Recon squad teleported in 24859 | -5/Extension | Zion Light squad teleported in 24863 | -5/Extension | Rescued A7 25035 | -5/Extension | Rescued a captive Derelict 25069 | -5/Extension | Rescued a captive Derelict 25074 | -5/Extension | Rescued a captive Derelict 25207 | -5/Extension | Warlord forces began an assault 25242 | -5/Extension | Spotted B-75 Beast 25247 | -5/Extension | Destroyed B-75 Beast 25296 | -5/Extension | Spotted B-75 Beast 25311 | -5/Extension | Allies destroyed B-75 Beast 25349 | -5/Extension | Build established: Commander-Mutant 25477 | -5/Extension | Disrupted transfer network 25560 | -5/Extension | Discovered new exit (range 16) 25560 | -5/Extension | Discovered new exit (range 16) 25576 | -5/Extension | Identified exit to Factory 25594 | -5/Extension | Identified exit to Cetus 25642 | -5/Extension | Entered Cetus 25642 | -5/Cetus | Accompanied by 18 allies (A7) 25647 | -5/Cetus | Acquired a Cetus Manufacturing Module code from A7 25668 | -5/Cetus | Spotted Cetus Guard 25668 | -5/Cetus | Spotted Cetus Guard 25673 | -5/Cetus | Spotted Cetus Guard 25675 | -5/Cetus | Spotted Cetus Guard 25679 | -5/Cetus | Allies destroyed Cetus Guard 25685 | -5/Cetus | Allies destroyed Cetus Guard 25688 | -5/Cetus | Allies destroyed Cetus Guard 25694 | -5/Cetus | Allies destroyed Cetus Guard 25719 | -5/Cetus | Lost 4 allies 25805 | -5/Cetus | Started Cetus Manufacturing Module 25830 | -5/Cetus | Manufactured an Enhanced Grunt 25855 | -5/Cetus | Manufactured an Enhanced Grunt 25880 | -5/Cetus | Manufactured an Enhanced Grunt 25884 | -5/Cetus | Build established: Commander-Gladiator 25896 | -5/Cetus | Escorted A7 to Cetus Mainframe 25905 | -5/Cetus | Manufactured an Enhanced Grunt 25930 | -5/Cetus | Manufactured an Enhanced Grunt 25976 | -5/Cetus | Discovered new exit (range 15) 25993 | -5/Cetus | Identified exit to Archives 26058 | -5/Cetus | Entered Archives 26058 | -5/Archives | Accompanied by 19 allies (A7) 26063 | -5/Archives | Received a hacking code to weaken MAIN.C 26277 | -5/Archives | Discovered exit to Factory (range 13) 26415 | -5/Archives | Discovered new exit (range 16) 26431 | -5/Archives | Identified exit to Hub_04(d) 26486 | -5/Archives | Entered Hub_04(d) 26486 | -5/Hub_04(d) | Accompanied by 17 allies 26538 | -5/Hub_04(d) | Retrieved Zion intel report: Unaware Analyses 26539 | -5/Hub_04(d) | Zion Infowar Resupply teleported in 26660 | -5/Hub_04(d) | Zion Light squad teleported in 26700 | -5/Hub_04(d) | Lost 3 allies 26775 | -5/Hub_04(d) | Network Hub disabled 26786 | -5/Hub_04(d) | First assault squad dispatched 26853 | -5/Hub_04(d) | Lost 3 allies 26869 | -5/Hub_04(d) | Network Hub disabled 26873 | -5/Hub_04(d) | Spotted Lightning 26897 | -5/Hub_04(d) | Spotted Lightning 26914 | -5/Hub_04(d) | Spotted Lightning 26939 | -5/Hub_04(d) | Lost 3 allies 26974 | -5/Hub_04(d) | Destroyed Lightning 27001 | -5/Hub_04(d) | System corruption reached 10% 27009 | -5/Hub_04(d) | Core integrity fell below 50% 27011 | -5/Hub_04(d) | Discovered exit to Factory (range 8) 27030 | -5/Hub_04(d) | Entered Factory 27030 | -4/Factory | Evolved 2 slots: Weapon x2 27049 | -4/Factory | Lost 15 parts (2p5n7u1w) 27222 | -4/Factory | Fabricated Arm. Huge Wheel (x2) 27280 | -4/Factory | First assault squad dispatched 27295 | -4/Factory | Repaired Broken Arm. Wheel+ 27312 | -4/Factory | Fabricated Arm. Huge Wheel? 27339 | -4/Factory | Watched by a mysterious "MATRIX" hacker 27349 | -4/Factory | Identified exit to DSF 27386 | -4/Factory | Entered DSF 27425 | -4/DSF | Additional patrols routed to DSF 27440 | -4/DSF | Self-destructed Last Messages --------------- dispatching Specialist reinforcements to area. 27409_ Field Recycling Unit collects Lgt. Angular Momentum Engine, recycling 7 matter... 27412_ Acquired Shield Generator. 27425_ Hostiles detected in DSF, routing additional patrols. 27427_ Penetrated by Slug. 27427_ Imp. Transmission Jammer destroyed. 27427_ Knocked back. 27432_ Acquired Adv. Target Analyzer. 27432_ Shield Generator destroyed. 27436_ Field Recycling Unit destroyed. 27436_ Knocked back. 27438_ H-71 Marshal calls for reinforcements. 27438_ ALERT: Hostile activity reported, dispatching reinforcements to area. 27438_ Knocked back. 27440_ Arm. Huge Wheel+ destroyed. 27440_ Knocked back. Map ----- +----------------------------------------------------+ | ??????????????????????????????????????? | | ??????????????????????????????????????? | | ??????????????????????????????????????? | | ??????????????????????????????????????? | | ??????????????????????????????????????? | | ??????????????????????????????????????? | | ??????????????????????????????????????? | | ??????????????????????????????????????? | | ??????????????????????????????????????? | | ??????????????????????????????????????? | | ??????????????????????????????????????? | | ??????????????????????????????????????? | | ??????????????????????????????????????? | | ??????????????????????????????????????? | | ??????????????????????????????????????? | | ??????????????????????????????????????? | | ??????????????????????????????????????? | | ??????????????????????????????????????? | | ??????###############???? #???????????? | | ?????## ## #!!!#?? ##??????????? | | ?????#" ## #!!!## ## ???????? | | ?????#"!! % %% ??????? | | ??????#!! % H ??????? | | ??????#! % ??????? | | ??????# * ## !!#***## #??????????? | | ??????#* ##!@!#***#?????????????????? | | ??????### ######?###?????????????????? | | ???????# &#????????????????????????? | | ???????# &#????????????????????????? | | ???????# &#????????????????????????? | | ???????## ###????????????????????????? | | ???????#& &&#????????????????????????? | | ???????#& &#????????????????????????? | | ???????## ###????????????????????????? | | ??????### ##???#?????????????????????? | | ????###"" ## #&&&##????????????????? | | ????""""" ??????????? | | ????"##"" ??????????? | | ??????#"""""##&&# #|| [[??????????? | | ??????#"""""#?###??##?????????????????? | | ??????####"##?????????????????????????? | | ?????????#"#??????????????????????????? | | ?????????""#??????????????????????????? | | ??????????????????????????????????????? | | ??????????????????????????????????????? | | ??????????????????????????????????????? | | ??????????????????????????????????????? | | ??????????????????????????????????????? | | | | | +----------------------------------------------------+ Best States ------------- Heat Dissipation 43 Energy Generation 23 Energy Capacity 810 Matter Stores 400 Matter Capacity 400 Sight Range 22 Robot Scan Range 16 Terrain Scan Range 24 Terrain Scan Density 10 Jamming Range 14 Corruption Block 15 Armor Coverage 625 Resistance: EM 25 Weapon Shielding 66 Melee Speed Boost 20 Evasion (%) 43 Melee Accuracy 16 Launcher Accuracy 30 Target Analysis 8 Core Analysis 9 Armor Integrity Analysis 30 Recoil Reduction 4 Matter Filtering 50 Offensive Hacking 14 Defensive Hacking 11 Authchip Count 2 Item Schematics ----------------- Cargo Storage Unit | -10/Materials | Hacked Huge Storage Unit | -10/Materials | Hacked Arm. Wheel | -8/Materials | Hacked Arm. Huge Wheel | -7/Factory | Scanalyzed Actuator Array | -7/Factory | Scanalyzed Greatsword | -7/Factory | Scanalyzed Impact Mace | -7/Factory | Scanalyzed Wheel | -7/Factory | Hacked Battle Cannon | -7/Zion | Free Flamer | -7/Zion | Free Combat Drone Bay | -6/Data Miner | Free Lgt. Regenerative Plating | -6/Data Miner | Free Enh. Flexi-carbon Leg | -6/Data Miner | Free Imp. Energy Well | -6/Data Miner | Free Hvy. Proton Missile Launcher | -6/Data Miner | Free Imp. Linear Gravjet | -6/Data Miner | Free Adv. Transmission Jammer | -6/Data Miner | Free Adv. Datajack | -6/Data Miner | Free Imp. Force Field | -6/Data Miner | Free Adv. Thermal Generator | -6/Data Miner | Free Robot Schematics ------------------ Y-64 Sentinel | -6/Data Miner | Free B-60 Warrior | -6/Data Miner | Free G-50 Soldier | -6/Data Miner | Free R-10 Processor | -6/Data Miner | Free E-15 Imp | -6/Data Miner | Free G-67 Veteran | -6/Data Miner | Free Fabricated ------------ Cargo Storage Unit | x1 | -7/Factory Imp. Corruption Screen | x2 | -7/Factory | Preloaded Huge Storage Unit | x1 | -7/Factory Arm. Huge Wheel | x2 | -6/Factory Arm. Huge Wheel | x2 | -5/Factory Arm. Wheel | x2 | -5/Factory Arm. Huge Wheel | x2 | -4/Factory | Authchip Arm. Huge Wheel | x2 | -4/Factory | Authchip Repaired ---------- Arm. Wheel | 9% | -4/Factory | Broken Studied --------- Wheel | -8/Materials | Hacked Com. Wheel | -8/Materials | Hacked Spear | -8/Materials | Hacked Arm. Wheel | -7/Factory | Hacked Arm. Huge Wheel | -7/Factory | Hacked Greatsword | -7/Factory | Hacked Deuterium Engine | -7/Factory | Hacked Hvy. Missile Launcher | -7/Factory | Hacked Powered Hammer | -7/Factory | Hacked Alien Tech Used ----------------- None Achievements -------------- Bending The Rules Challenges ------------ None Game ------ Seed ThermalHardlightTracker Manual? 0 Play Time 02:34:57 Cumulative 554.4 hours Start 2026.08.17 @ 20:47:00 End 2026.08.17 @ 23:49:58 Sessions 2 Manual Loads 0 Difficulty Rogue Special Mode None Game No. 473 Rogue 473 Adventurer 0 Explorer 0 Win Type - Total 15 Types 8/0/3/1/0/0/0/1/0/2 Lore% 66 Gallery% 71 Achievement% 68 Wizard Run 0 Options --------- Layout 1 ASCII 0 Keyboard 0 Movement Mouse Keybinds 0 Fullscreen 2 Font 24/Cog Map View 50x35 Zoom Use 11% Tactical HUD 1 Map Filters NONE Filters NONE Steam 1 RUN: 1749e452-8471-4441-8e03-1fd816076f4f